fUST/lending_fUST_20250915
["ID","MTS","AMOUNT","RATE_DAILY","PERIOD"]
[385509918,1757883043199,-662.69,0.00022739,3]
[385509920,1757883043209,-480.0,0.00022739,3]
[385509922,1757883043219,-480.0,0.00022739,3]
[385509924,1757883043228,-480.0,0.00022739,3]
[385509926,1757883043237,-480.0,0.00022739,3]
[385509928,1757883043247,-480.0,0.00022739,3]
[385509930,1757883043257,-480.0,0.00022739,3]
[385509932,1757883043267,-480.0,0.00022739,3]
[385509934,1757883043276,-480.0,0.00022739,3]
[385509936,1757883043287,-752.86,0.00022739,3]
[385509938,1757883043296,-480.0,0.00022739,3]
[385509940,1757883043306,-480.0,0.00022739,3]
[385509942,1757883043315,-480.0,0.00022739,3]
[385509944,1757883043324,-480.0,0.00022739,3]
[385509946,1757883043334,-480.0,0.00022739,3]
[385509948,1757883043343,-480.0,0.00022739,3]
[385509950,1757883043352,-480.0,0.00022739,3]
[385509952,1757883043361,-480.0,0.00022739,3]
[385509954,1757883043374,-300.0,0.00022739,2]
[385509956,1757883043385,-480.0,0.00022739,3]
[385509958,1757883043397,-629.43,0.00022739,3]
[385509960,1757883043406,-10889.17,0.00022739,3]
[385509962,1757883043415,-575.93,0.00022739,3]
[385509965,1757883043424,-596.11,0.00022739,3]
[385509967,1757883043433,-719.75,0.00022739,3]
[385509969,1757883043447,-3294.39,0.00022739,3]
[385509972,1757883043456,-918.8,0.00022739,3]
[385509974,1757883043465,-480.0,0.00022739,3]
[385509976,1757883043476,-1704.0,0.00022739,3]
[385509978,1757883043485,-480.0,0.00022739,3]
[385509980,1757883043494,-526.97,0.00022739,3]
[385509982,1757883043504,-1182.57,0.00022739,3]
[385509984,1757883043514,-480.0,0.00022739,3]
[385509986,1757883043523,-480.0,0.00022739,3]
[385509988,1757883043532,-293.63937455,0.00022739,3]
[385510148,1757883045172,-0.03015438,0.00022739,3]
[385511964,1757883063431,1661.28143581,0.000199,2]
[385530984,1757883272977,1595.74963843,0.000199,2]
[385530986,1757883288345,-265.35983074,0.00021146,2]
[385530990,1757883345935,4030.0,0.00027,120]
[385530991,1757883452153,1591.35999164,0.000199,2]
[385530993,1757883647370,1535.66963172,0.000199,2]
[385530996,1757883837272,1484.47398723,0.000199,2]
[385531007,1757884028540,1434.98906408,0.000199,2]
[385531082,1757884219976,631.48846953,0.000199,2]
[385531083,1757884220003,756.56988603,0.000199,2]
[385531146,1757884232358,-211.7875157,0.00020377,2]
[385531148,1757884232367,-500.0,0.000204,2]
[385531150,1757884232376,-729.1321837,0.0002045,2]
[385531152,1757884232385,-323.3527731,0.0002046,2]
[385531153,1757884232395,-550.2754917,0.00020549,2]
[385531154,1757884232403,-283.7214947,0.00020606,2]
[385531156,1757884232413,-529.77537994,0.00021149,2]
[385531159,1757884232432,-858.2829756,0.00021149,2]
[385531161,1757884232442,-1001.747633,0.000212,2]
[385531163,1757884232451,-5000.0,0.00021317,2]
[385531165,1757884232460,-5000.0,0.00021317,2]
[385531167,1757884232469,-1209.22375778,0.00021468,2]
[385531169,1757884232478,-1200.0,0.00021524,2]
[385531171,1757884232487,-300.0,0.00021525,2]
[385531173,1757884232496,-227.0,0.00021525,2]
[385531175,1757884232505,-300.0,0.00021525,2]
[385531177,1757884232514,-5000.0,0.00021526,2]
[385531179,1757884232524,-8382.28997462,0.00021526,2]
[385531181,1757884232536,-31959.54245692,0.00021526,2]
[385531184,1757884232547,-5905.71454711,0.00021526,2]
[385531186,1757884232556,-160.0,0.00021568,3]
[385531188,1757884232566,-160.3,0.00021641,2]
[385531190,1757884232575,-1000.0,0.000217,2]
[385531192,1757884232584,-4303.64,0.00021707,10]
[385531194,1757884232593,-3586.37,0.00021707,10]
[385531195,1757884232603,-500.0,0.00021714,2]
[385531197,1757884232613,-500.0,0.00021714,2]
[385531200,1757884232622,-500.0,0.00021714,2]
[385531202,1757884232632,-169.6502318,0.00021714,2]
[385531204,1757884232641,-500.0,0.00021714,2]
[385531206,1757884232651,-500.0,0.00021714,2]
[385531208,1757884232660,-500.0,0.00021714,2]
[385531209,1757884232669,-500.0,0.00021714,2]
[385531212,1757884232679,-507.57191749,0.00021714,2]
[385531214,1757884232689,-443.85087166,0.00021714,2]
[385531215,1757884232698,-500.0,0.00021714,2]
[385531217,1757884232708,-500.0,0.00021714,2]
[385531219,1757884232717,-500.0,0.00021714,2]
[385531221,1757884232726,-500.0,0.00021714,2]
[385531223,1757884232736,-500.0,0.00021714,2]
[385531226,1757884232746,-500.0,0.00021714,2]
[385531228,1757884232756,-500.0,0.00021714,2]
[385531230,1757884232766,-500.0,0.00021714,2]
[385531232,1757884232775,-500.0,0.00021714,2]
[385531234,1757884232784,-500.0,0.00021714,2]
[385531236,1757884232793,-500.0,0.00021714,2]
[385531238,1757884232802,-500.0,0.00021714,2]
[385531240,1757884232811,-500.0,0.00021714,2]
[385531242,1757884232820,-500.0,0.00021714,2]
[385531244,1757884232829,-500.0,0.00021714,2]
[385531246,1757884232840,-500.0,0.00021714,2]
[385531248,1757884232850,-500.0,0.00021714,2]
[385531249,1757884232861,-500.0,0.00021714,2]
[385531251,1757884232870,-500.0,0.00021714,2]
[385531253,1757884232879,-500.0,0.00021714,2]
[385531255,1757884232889,-266.32819203,0.00021714,2]
[385531257,1757884232898,-500.0,0.00021714,2]
[385531259,1757884232907,-500.0,0.00021714,2]
[385531261,1757884232917,-281.54232498,0.00021714,2]
[385531263,1757884232926,-480.0,0.00021716,2]
[385531265,1757884232935,-500.0,0.00021716,2]
[385531266,1757884232947,-500.0,0.00021716,2]
[385531267,1757884232957,-500.0,0.00021716,2]
[385531268,1757884233111,-500.0,0.00021716,2]
[385531269,1757884233121,-500.0,0.00021716,2]
[385531270,1757884233131,-500.0,0.00021716,2]
[385531271,1757884233142,-500.0,0.00021716,2]
[385531272,1757884233152,-500.0,0.00021716,2]
[385531273,1757884233162,-545.05908934,0.00021716,2]
[385531274,1757884233171,-500.0,0.00021716,2]
[385531275,1757884233182,-500.0,0.00021716,2]
[385531276,1757884233195,-19377.96970813,0.00021717,2]
[385531277,1757884233329,-6500.76518774,0.00021717,2]
[385531328,1757884238374,-1922.38994958,0.00021622,2]
[385531330,1757884238387,-2607.36697838,0.00021622,2]
[385531332,1757884238397,-23994.68558007,0.00021717,2]
[385531337,1757884238428,-13622.70150369,0.00021717,2]
[385531339,1757884238440,-8044.45010541,0.00021717,2]
[385531600,1757884240369,-5633.72088947,0.00021717,2]
[385531613,1757884240455,-1157.26268837,0.00021717,2]
[385532011,1757884243535,-48200.0,0.00021717,2]
[385532015,1757884243547,-30300.0,0.00021717,2]
[385532018,1757884243558,-950.0,0.00021717,2]
[385532021,1757884243570,-18922.47519823,0.00021717,2]
[385538262,1757884406066,1980.78237132,0.000199,2]
[385538263,1757884481559,318.38766947,0.00020068,2]
[385538264,1757884592320,1914.74693964,0.000199,2]
[385538265,1757884686267,542.0,0.00027397,120]
[385538267,1757884783940,1850.91209999,0.000199,2]
[385538269,1757884904049,153.843003,0.00024,30]
[385538271,1757884975527,1789.21280495,0.000199,2]
[385538273,1757885167659,1389.3982286,0.000199,2]
[385538274,1757885167686,340.16184417,0.000199,2]
[385538280,1757885290272,3066.98597379,0.00019205,5]
[385538281,1757885359973,1671.78752183,0.000199,2]
[385538346,1757885438656,-1153.2258442,0.00021149,2]
[385538386,1757885443260,153.843003,0.00024,30]
[385538391,1757885446674,-518.56167761,0.00021149,2]
[385538392,1757885446686,-5332.10913764,0.000215,2]
[385538393,1757885446698,-208.02846301,0.00021603,2]
[385538394,1757885446711,-168.38880561,0.00021603,2]
[385538395,1757885446723,-1200.0,0.00021603,2]
[385538396,1757885446735,-300.0,0.00021604,2]
[385538397,1757885446746,-196.0,0.00021604,2]
[385538398,1757885446755,-300.0,0.00021604,2]
[385538399,1757885446765,-178.0,0.00021605,2]
[385538400,1757885446775,-2988.64,0.00021606,10]
[385538401,1757885446786,-500.0,0.00021615,2]
[385538402,1757885446796,-500.0,0.00021615,2]
[385538403,1757885446807,-220.73478894,0.00021615,2]
[385538404,1757885446819,-500.0,0.00021615,2]
[385538405,1757885446832,-500.0,0.00021615,2]
[385538406,1757885446843,-500.0,0.00021615,2]
[385538407,1757885446856,-500.0,0.00021615,2]
[385538408,1757885446866,-500.0,0.00021615,2]
[385538409,1757885446876,-500.0,0.00021615,2]
[385538410,1757885446887,-500.0,0.00021615,2]
[385538411,1757885446898,-500.0,0.00021615,2]
[385538412,1757885446913,-500.0,0.00021615,2]
[385538413,1757885446924,-420.4967364,0.00021615,2]
[385538414,1757885446935,-500.0,0.00021615,2]
[385538415,1757885446945,-440.04773373,0.00021615,2]
[385538416,1757885446955,-424.06548364,0.00021615,2]
[385538417,1757885446966,-411.72316288,0.00021615,2]
[385538418,1757885446976,-1296.12429044,0.00021615,2]
[385538419,1757885446987,-124581.6601434,0.00021616,2]
[385538420,1757885447000,-107434.18193655,0.00021616,2]
[385538421,1757885447011,-500.0,0.00021673,2]
[385538422,1757885447021,-370.6127296,0.00021673,2]
[385538423,1757885447031,-502.6238293,0.00021673,2]
[385538424,1757885447042,-500.0,0.00021673,2]
[385538425,1757885447052,-500.0,0.00021673,2]
[385538426,1757885447062,-260.22484996,0.00021673,2]
[385538427,1757885447072,-500.0,0.00021673,2]
[385538428,1757885447082,-519.41544812,0.00021673,2]
[385538429,1757885447092,-500.0,0.00021673,2]
[385538430,1757885447102,-500.0,0.00021673,2]
[385538431,1757885447113,-500.0,0.00021673,2]
[385538432,1757885447124,-3002.5062197,0.00021715,2]
[385538433,1757885447134,-369.89050528,0.00021722,2]
[385538434,1757885447144,-411.72316285,0.00021734,2]
[385538435,1757885447154,-153.843003,0.00021804,10]
[385538436,1757885447164,-954.67591669,0.00021815,2]
[385538442,1757885498535,157.529893,0.00024,30]
[385538443,1757885547581,2148.54099535,0.000199,2]
[385538469,1757885732786,2076.92296222,0.000199,2]
[385538482,1757885915005,695.61070264,0.000199,2]
[385538483,1757885915043,1312.08149425,0.000199,2]
[385538488,1757886095912,1940.76912367,0.000199,2]
[385538492,1757886248463,450.84531568,0.0002015,2]
[385538493,1757886278712,1876.07681948,0.000199,2]
[385538500,1757886460150,1813.54092542,0.000199,2]
[385538505,1757886570362,302.84859387,0.00019801,2]
[385538506,1757886570390,303.45453344,0.00019999,4]
[385538548,1757886631833,-1813.54092535,0.00021149,2]
[385538550,1757886631843,-5000.0,0.00021317,2]
[385538552,1757886631854,-300.0,0.0002147,2]
[385538554,1757886631863,-1200.0,0.0002147,2]
[385538556,1757886631873,-1200.0,0.00021471,2]
[385538558,1757886631882,-300.0,0.00021471,2]
[385538560,1757886631893,-300.0,0.00021471,2]
[385538562,1757886631902,-300.0,0.00021471,2]
[385538564,1757886631911,-374.61438847,0.00021473,2]
[385538567,1757886631921,-637.29505754,0.00021515,2]
[385538568,1757886631931,-500.0,0.00021515,2]
[385538571,1757886631941,-500.0,0.00021515,2]
[385538573,1757886631951,-415.6488898,0.00021515,2]
[385538575,1757886631960,-500.0,0.00021515,2]
[385538577,1757886631969,-500.0,0.00021515,2]
[385538578,1757886631979,-500.0,0.00021515,2]
[385538580,1757886631989,-295.23928199,0.00021515,2]
[385538582,1757886632000,-500.0,0.00021515,2]
[385538584,1757886632009,-599.26482452,0.00021515,2]
[385538586,1757886632019,-500.0,0.00021515,2]
[385538588,1757886632028,-500.0,0.00021515,2]
[385538590,1757886632037,-500.0,0.00021515,2]
[385538592,1757886632046,-500.0,0.00021515,2]
[385538595,1757886632056,-500.0,0.00021515,2]
[385538597,1757886632066,-500.0,0.00021515,2]
[385538599,1757886632075,-500.0,0.00021515,2]
[385538601,1757886632084,-596.37926713,0.00021515,2]
[385538603,1757886632094,-500.0,0.00021515,2]
[385538605,1757886632103,-500.0,0.00021515,2]
[385538607,1757886632112,-500.0,0.00021515,2]
[385538609,1757886632121,-500.0,0.00021515,2]
[385538611,1757886632130,-500.0,0.00021515,2]
[385538613,1757886632139,-500.0,0.00021515,2]
[385538615,1757886632148,-246.0141531,0.00021515,2]
[385538617,1757886632158,-500.0,0.00021515,2]
[385538619,1757886632167,-500.0,0.00021515,2]
[385538621,1757886632176,-500.0,0.00021515,2]
[385538623,1757886632187,-500.0,0.00021515,2]
[385538625,1757886632197,-2393.70251534,0.00021516,2]
[385538626,1757886632207,-22933.05741402,0.00021516,2]
[385538628,1757886632218,-1797.96184021,0.00021516,2]
[385538630,1757886632229,-1835.77781395,0.00021516,2]
[385538757,1757886638028,-2490.53,0.00021506,10]
[385538758,1757886638038,-42794.30588374,0.00021516,2]
[385538759,1757886638050,-18910.6563185,0.00021516,2]
[385538848,1757886639935,-29015.0,0.00021516,2]
[385538918,1757886643747,-989.11988135,0.00021516,2]
[385538919,1757886643759,-825.39796,0.00021516,2]
[385538927,1757886646109,-871.84501054,0.00021516,2]
[385538928,1757886648827,1731.61012469,0.000199,2]
[385538946,1757886833580,268.7830695,0.000199,2]
[385538947,1757886833604,1807.36511021,0.000199,2]
[385538951,1757887023744,1990.60990685,0.000199,2]
[385538958,1757887211690,1924.25624324,0.000199,2]
[385538961,1757887279956,813.75070014,0.0002015,2]
[385538966,1757887392985,1860.11436862,0.000199,2]
[385538967,1757887573130,1603.91367094,0.000199,2]
[385538968,1757887573157,194.19688547,0.000199,2]
[385538970,1757887640124,-1511.0,0.00020831,2]
[385538971,1757887640153,-1511.0,0.00021035,2]
[385538972,1757887640179,-1798.11055617,0.00021149,2]
[385538973,1757887640200,-383.43582605,0.0002116,2]
[385538974,1757887640222,-505.77255015,0.00021263,2]
[385538981,1757887766875,1678.23651915,0.000199,2]
[385538995,1757887832366,-1678.23651909,0.00021149,2]
[385538996,1757887832376,-1005.22744985,0.00021263,2]
[385538997,1757887832385,-700.0,0.0002129,2]
[385538998,1757887832395,-700.0,0.00021299,2]
[385538999,1757887832404,-1175.63006435,0.00021316,2]
[385539000,1757887832414,-700.0,0.00021393,2]
[385539001,1757887832423,-300.0,0.00021414,2]
[385539002,1757887832433,-182.0,0.00021414,2]
[385539003,1757887832442,-1200.0,0.00021414,2]
[385539004,1757887832451,-33303.43954828,0.00021415,2]
[385539005,1757887832467,-3580.25951023,0.00021415,2]
[385539016,1757887837965,-1468.65725601,0.00021415,2]
[385539019,1757887837976,-711.80323751,0.00021415,2]
[385539030,1757887838077,-10935.84044797,0.00021415,2]
[385539032,1757887838087,-500.0,0.00021415,2]
[385539034,1757887838096,-500.0,0.00021415,2]
[385539036,1757887838105,-500.0,0.00021415,2]
[385539038,1757887838115,-500.0,0.00021415,2]
[385539040,1757887838124,-500.0,0.00021415,2]
[385539042,1757887838134,-500.0,0.00021415,2]
[385539044,1757887838144,-227.07236597,0.00021415,2]
[385539046,1757887838153,-500.0,0.00021415,2]
[385539048,1757887838162,-500.0,0.00021415,2]
[385539050,1757887838172,-357.5706697,0.00021415,2]
[385539052,1757887838185,-500.0,0.00021415,2]
[385539054,1757887838194,-500.0,0.00021415,2]
[385539056,1757887838203,-612.6573401,0.00021415,2]
[385539058,1757887838213,-500.0,0.00021415,2]
[385539060,1757887838223,-500.0,0.00021415,2]
[385539062,1757887838233,-500.0,0.00021415,2]
[385539064,1757887838243,-500.0,0.00021415,2]
[385539066,1757887838253,-500.0,0.00021415,2]
[385539068,1757887838262,-500.0,0.00021415,2]
[385539070,1757887838272,-500.0,0.00021415,2]
[385539072,1757887838281,-598.08016796,0.00021415,2]
[385539074,1757887838290,-500.0,0.00021415,2]
[385539076,1757887838300,-500.0,0.00021415,2]
[385539078,1757887838309,-29832.77238963,0.00021416,2]
[385539080,1757887838318,-970.95434004,0.00021416,2]
[385539082,1757887838327,-1095.1,0.00021423,10]
[385539084,1757887838336,-700.0,0.00021433,2]
[385539086,1757887838347,-11549.1580023,0.00021505,2]
[385539088,1757887838356,-500.0,0.00021516,2]
[385539090,1757887838365,-328.0,0.00021516,2]
[385539092,1757887838374,-328.0,0.00021516,2]
[385539094,1757887838384,-328.0,0.00021516,2]
[385539096,1757887838393,-328.0,0.00021516,2]
[385539098,1757887838403,-328.0,0.00021516,2]
[385539100,1757887838412,-328.0,0.00021516,2]
[385539102,1757887838422,-328.0,0.00021516,2]
[385539104,1757887838430,-328.0,0.00021516,2]
[385539106,1757887838439,-327.3628136,0.00021516,2]
[385539108,1757887838448,-328.0,0.00021516,2]
[385539110,1757887838458,-328.0,0.00021516,2]
[385539112,1757887838467,-700.0,0.0002154,2]
[385539114,1757887838476,-245.0,0.00021568,3]
[385539116,1757887838485,-244.42894391,0.00021568,3]
[385539118,1757887838494,-1102.0,0.00021568,3]
[385539120,1757887838503,-151.0,0.00021568,3]
[385539122,1757887838513,-267.41440157,0.00021568,3]
[385539124,1757887838523,-245.0,0.00021568,3]
[385539126,1757887838532,-151.0,0.00021568,3]
[385539128,1757887838541,-151.0,0.00021568,3]
[385539130,1757887838550,-151.0,0.00021568,3]
[385539132,1757887838559,-151.0,0.00021568,3]
[385539134,1757887838568,-151.0,0.00021568,3]
[385539136,1757887838577,-500.0,0.00021568,3]
[385539138,1757887838587,-160.0,0.00021568,3]
[385539140,1757887838596,-204.93562152,0.000216,2]
[385539143,1757887838606,-700.0,0.00021651,2]
[385539145,1757887838616,-970.95434001,0.00021653,2]
[385539146,1757887838626,-700.0,0.00021713,2]
[385539148,1757887838637,-208.0,0.00021756,2]
[385539150,1757887838647,-208.0,0.00021785,2]
[385539153,1757887838656,-500.0,0.0002179,2]
[385539155,1757887838666,-10289.47196739,0.00021815,2]
[385539157,1757887838675,-208.0,0.00021837,2]
[385539159,1757887838684,-5000.0,0.00021841,2]
[385539160,1757887838693,-1102.0,0.00021842,3]
[385539162,1757887838702,-151.0,0.00021842,3]
[385539164,1757887838711,-163.0,0.00021842,3]
[385539166,1757887838720,-163.0,0.00021842,3]
[385539168,1757887838730,-151.0,0.00021842,3]
[385539170,1757887838739,-151.0,0.00021842,3]
[385539172,1757887838749,-500.0,0.00021842,3]
[385539174,1757887838758,-217.77739939,0.00021854,2]
[385539176,1757887838767,-233.1999649,0.00021854,2]
[385539178,1757887838776,-160.0,0.00021855,2]
[385539180,1757887838785,-160.0,0.00021855,2]
[385539182,1757887838794,-160.0,0.00021855,2]
[385539184,1757887838802,-160.0,0.00021855,2]
[385539186,1757887838811,-160.0,0.00021855,2]
[385539188,1757887838820,-259.73517317,0.00021855,2]
[385539191,1757887838832,-587.5436795,0.00021855,2]
[385539193,1757887838841,-160.0,0.00021855,2]
[385539195,1757887838850,-160.0,0.00021855,2]
[385539197,1757887838859,-208.0,0.00021861,2]
[385539198,1757887838868,-5335.48648091,0.00021869,2]
[385539200,1757887838879,-5254.81455147,0.00021869,2]
[385539203,1757887838890,-151.0,0.0002187,2]
[385539205,1757887838899,-970.95434001,0.00021891,2]
[385539207,1757887838908,-281.47379478,0.00021916,2]
[385539213,1757887838960,-218.52620522,0.00021916,2]
[385539215,1757887838970,-193.61230462,0.00021916,2]
[385539217,1757887838979,-207.84688426,0.00021916,2]
[385539219,1757887838988,-500.0,0.00021916,2]
[385539221,1757887838997,-500.0,0.00021916,2]
[385539223,1757887839007,-500.0,0.00021916,2]
[385539225,1757887839016,-190.03664993,0.00021916,2]
[385539227,1757887839025,-500.0,0.00021916,2]
[385539229,1757887839034,-500.0,0.00021916,2]
[385539231,1757887839043,-500.0,0.00021916,2]
[385539233,1757887839052,-500.0,0.00021916,2]
[385539235,1757887839062,-500.0,0.00021916,2]
[385539237,1757887839071,-500.0,0.00021916,2]
[385539239,1757887839080,-500.0,0.00021916,2]
[385539241,1757887839089,-1196.85125767,0.00021917,2]
[385539243,1757887839098,-480.0,0.00021917,3]
[385539245,1757887839107,-507.17,0.00021917,2]
[385539247,1757887839117,-165.2758495,0.00021917,2]
[385539249,1757887839127,-314.7241505,0.00021917,2]
[385539251,1757887839138,-480.0,0.00021917,2]
[385539253,1757887839147,-480.0,0.00021917,2]
[385539255,1757887839156,-480.0,0.00021917,2]
[385539257,1757887839165,-480.0,0.00021917,2]
[385539259,1757887839174,-480.0,0.00021917,2]
[385539261,1757887839183,-480.0,0.00021917,2]
[385539263,1757887839192,-218.8312306,0.00021917,2]
[385539265,1757887839201,-311.68500385,0.00021917,2]
[385539267,1757887839212,-168.31499615,0.00021917,2]
[385539269,1757887839221,-480.0,0.00021917,2]
[385539271,1757887839231,-480.0,0.00021917,2]
[385539273,1757887839240,-480.0,0.00021917,2]
[385539275,1757887839249,-480.0,0.00021917,2]
[385539277,1757887839259,-480.0,0.00021917,2]
[385539279,1757887839268,-480.0,0.00021917,2]
[385539281,1757887839277,-480.0,0.00021917,2]
[385539283,1757887839287,-208.96988658,0.00021917,2]
[385539285,1757887839297,-480.0,0.00021917,2]
[385539287,1757887839306,-480.0,0.00021917,2]
[385539289,1757887839315,-480.0,0.00021917,2]
[385539291,1757887839324,-480.0,0.00021917,2]
[385539293,1757887839333,-799.97,0.00021917,2]
[385539295,1757887839343,-484.57,0.00021917,2]
[385539297,1757887839352,-563.18,0.00021917,2]
[385539299,1757887839361,-480.0,0.00021917,2]
[385539301,1757887839371,-480.0,0.00021917,2]
[385539303,1757887839380,-77.22388939,0.00021917,2]
[385539305,1757887839392,-402.77611061,0.00021917,2]
[385539307,1757887839401,-480.0,0.00021917,2]
[385539309,1757887839410,-291.9978694,0.00021917,2]
[385539311,1757887839419,-820.38,0.00021917,2]
[385539313,1757887839428,-480.0,0.00021917,2]
[385539315,1757887839438,-134.47308378,0.00021917,2]
[385539318,1757887839453,-345.52691622,0.00021917,2]
[385539321,1757887839461,-480.0,0.00021917,2]
[385539323,1757887839470,-480.0,0.00021917,2]
[385539325,1757887839479,-480.0,0.00021917,2]
[385539327,1757887839489,-481.16,0.00021917,2]
[385539329,1757887839497,-486.46,0.00021917,2]
[385539331,1757887839506,-480.0,0.00021917,2]
[385539332,1757887839515,-480.0,0.00021917,2]
[385539335,1757887839525,-480.0,0.00021917,2]
[385539337,1757887839534,-480.0,0.00021917,2]
[385539339,1757887839543,-514.62,0.00021917,2]
[385539341,1757887839552,-200.0,0.00021917,3]
[385539343,1757887839561,-200.0,0.00021917,3]
[385539344,1757887839570,-200.0,0.00021917,3]
[385539347,1757887839579,-200.0,0.00021917,3]
[385539349,1757887839588,-200.0,0.00021917,3]
[385539350,1757887839597,-200.0,0.00021917,3]
[385539352,1757887839606,-480.0,0.00021917,2]
[385539354,1757887839616,-1341.53,0.00021917,2]
[385539357,1757887839625,-754.17,0.00021917,2]
[385539359,1757887839635,-262.53308378,0.00021917,2]
[385539405,1757887840055,-408.0,0.00021845,10]
[385539408,1757887840066,-1484.93,0.00021845,10]
[385539410,1757887840075,-480.0,0.00021917,2]
[385539412,1757887840084,-3765.01,0.00021917,2]
[385539414,1757887840093,-658.2,0.00021917,2]
[385539416,1757887840102,-480.0,0.00021917,2]
[385539418,1757887840111,-939.98,0.00021917,2]
[385539420,1757887840120,-480.0,0.00021917,2]
[385539422,1757887840129,-858.8,0.00021917,2]
[385539424,1757887840140,-480.0,0.00021917,2]
[385539426,1757887840149,-480.0,0.00021917,2]
[385539428,1757887840158,-1018.08,0.00021917,2]
[385539443,1757887840286,-31.97,0.00021917,2]
[385539445,1757887840296,-2141.92,0.00021917,2]
[385539447,1757887840305,-480.0,0.00021917,2]
[385539449,1757887840314,-480.0,0.00021917,2]
[385539451,1757887840323,-480.0,0.00021917,2]
[385539453,1757887840332,-480.0,0.00021917,2]
[385539455,1757887840341,-480.0,0.00021917,2]
[385539457,1757887840350,-480.0,0.00021917,2]
[385539458,1757887840359,-480.0,0.00021917,2]
[385539460,1757887840368,-674.12,0.00021917,2]
[385539463,1757887840378,-3759.44,0.00021917,2]
[385539465,1757887840388,-7615.81,0.00021917,2]
[385539467,1757887840398,-480.0,0.00021917,2]
[385539469,1757887840407,-480.0,0.00021917,2]
[385539471,1757887840416,-480.0,0.00021917,2]
[385539472,1757887840426,-666.4,0.00021917,2]
[385539475,1757887840435,-480.0,0.00021917,2]
[385539476,1757887840444,-480.0,0.00021917,2]
[385539478,1757887840453,-1548.7,0.00021917,2]
[385539481,1757887840463,-1228.23,0.00021917,2]
[385539483,1757887840472,-1662.4,0.00021917,2]
[385539485,1757887840481,-1553.69,0.00021917,2]
[385539486,1757887840491,-480.0,0.00021917,2]
[385539489,1757887840500,-657.85,0.00021917,2]
[385539491,1757887840509,-1483.53,0.00021917,2]
[385539492,1757887840519,-2218.58,0.00021917,2]
[385539495,1757887840528,-664.43,0.00021917,2]
[385539497,1757887840538,-484.26,0.00021917,2]
[385539499,1757887840547,-515.91,0.00021917,2]
[385539501,1757887840556,-480.0,0.00021917,2]
[385539503,1757887840565,-598.72,0.00021917,2]
[385539505,1757887840574,-480.0,0.00021917,2]
[385539507,1757887840584,-480.0,0.00021917,2]
[385539509,1757887840593,-3034.58,0.00021917,2]
[385539510,1757887840602,-480.0,0.00021917,2]
[385539527,1757887840750,-480.0,0.00021917,2]
[385539529,1757887840761,-1263.32,0.00021917,2]
[385539531,1757887840770,-480.0,0.00021917,2]
[385539533,1757887840780,-529.75,0.00021917,2]
[385539535,1757887840789,-743.91,0.00021917,2]
[385539537,1757887840798,-374.6559393,0.00021917,2]
[385539539,1757887840808,-581.6,0.00021917,2]
[385539541,1757887840817,-2132.04,0.00021917,2]
[385539543,1757887840826,-525.32,0.00021917,2]
[385539545,1757887840835,-480.0,0.00021917,2]
[385539547,1757887840845,-480.0,0.00021917,2]
[385539549,1757887840854,-847.73,0.00021917,2]
[385539552,1757887840865,-653.99,0.00021917,2]
[385539554,1757887840874,-480.0,0.00021917,2]